fUST/lending_fUST_20240130
["ID","MTS","AMOUNT","RATE_DAILY","PERIOD"]
[312988140,1706567439112,-503.07014157,0.0003,14]
[312988141,1706567439121,-24739.90117513,0.0003,3]
[312988329,1706567441186,-403.5335302,0.0003,3]
[312988331,1706567441197,-1266.56600852,0.0003,3]
[312988567,1706567443165,-4215.05987283,0.0003,3]
[312990363,1706567892308,2713.33051082,0.00019581,5]
[312990365,1706567982880,200.0,0.00021538,7]
[312990368,1706568293349,155.0,0.00018553,3]
[312990369,1706568311853,155.0,0.00016699,3]
[312990371,1706568327870,155.0,0.00016699,3]
[312990372,1706568349862,155.0,0.00016699,3]
[312990373,1706568366370,155.0,0.000167,3]
[312990374,1706568386387,155.0,0.00016691,3]
[312990375,1706568408379,155.0,0.00015029,2]
[312990376,1706568428872,155.0,0.00015027,2]
[312990378,1706568450878,155.0,0.00015027,2]
[312990379,1706568469112,2971.0052614,0.00015698,2]
[312990380,1706568470888,155.0,0.00015027,2]
[312990381,1706568474971,535.7952849,0.00015027,2]
[312990382,1706568488961,319.47596378,0.00015027,2]
[312990383,1706568493377,155.0,0.00015027,2]
[312990386,1706568509393,155.0,0.00014953,2]
[312990389,1706568525534,155.0,0.00014953,2]
[312990390,1706568543391,155.0,0.00014953,2]
[312990391,1706568561892,155.0,0.00014949,2]
[312990448,1706568634035,-155.0,0.00016509,2]
[312990449,1706568634045,-329.93073591,0.0001651,2]
[312990450,1706568634054,-272.91151792,0.0001651,2]
[312990451,1706568634064,-181.19417615,0.0001651,2]
[312990452,1706568634073,-155.0,0.0001651,2]
[312990453,1706568634082,-225.78184681,0.00016511,2]
[312990455,1706568634095,-76.52402221,0.00016511,2]
[312990457,1706568634105,-155.0,0.00016511,2]
[312990459,1706568634114,-904.71067486,0.00016512,2]
[312990461,1706568634124,-19887.51512696,0.00016513,2]
[312990463,1706568634133,-4802.42753151,0.00016514,2]
[312990465,1706568634143,-297.83181427,0.00016518,2]
[312990466,1706568634151,-309.29107459,0.00016615,2]
[312990468,1706568634161,-246.112991,0.00016622,2]
[312990470,1706568634170,-24655.86175737,0.000167,2]
[312990523,1706568638203,-408.3668366,0.00016508,2]
[312990788,1706568643176,-230.92163509,0.00016508,2]
[312990789,1706568643186,-64866.10758517,0.000167,2]
[312990790,1706568643197,-195177.39092388,0.000167,2]
[312990791,1706568643207,-155.75566436,0.00018172,2]
[312990792,1706568643216,-200.0,0.00018272,2]
[312990793,1706568643225,-1199.48200298,0.00018546,2]
[312990794,1706568643234,-20705.1525417,0.00018557,2]
[312990795,1706568643243,-166.53552,0.00019178,2]
[312990796,1706568643252,-2985.81955725,0.00019581,2]
[312990797,1706568643261,-245.64947409,0.00019584,2]
[312990798,1706568643270,-3595.82796446,0.00019587,2]
[312990799,1706568643280,-323.48853251,0.0002,2]
[312990801,1706568643289,-214.0,0.00020099,2]
[312990802,1706568643298,-3196.26606373,0.00021538,2]
[312990803,1706568643307,-300.0,0.00021538,2]
[312990804,1706568643316,-2087.09739776,0.00021538,2]
[312990805,1706568643325,-166.666666,0.00021918,2]
[312990806,1706568643334,-151.0,0.00021944,2]
[312990807,1706568643343,-1827.7377922,0.00022,2]
[312990808,1706568643353,-155.33940957,0.00022,2]
[312990809,1706568643362,-195.06700815,0.00022,2]
[312990810,1706568643371,-155.89255893,0.00022,2]
[312990811,1706568643380,-155.58047114,0.00022,2]
[312990812,1706568643389,-3973.56469819,0.00022,2]
[312990813,1706568643398,-426.52191671,0.00022,2]
[312990814,1706568643407,-2036.12411825,0.00022497,2]
[312990815,1706568643420,-166.666666,0.00022559,2]
[312990816,1706568643429,-1260.96531066,0.00023,2]
[312990817,1706568643438,-166.666666,0.000232,2]
[312990818,1706568643446,-10831.91498904,0.00023708,2]
[312990819,1706568643456,-1563.98537005,0.00023708,2]
[312990820,1706568643465,-804.99153642,0.00023708,2]
[312990821,1706568643473,-166.666666,0.00023841,2]
[312990822,1706568643483,-4019.31124265,0.00024,2]
[312990823,1706568643492,-166.666666,0.00024482,2]
[312990824,1706568643502,-162.085067,0.00024658,2]
[312990825,1706568643511,-851.40854634,0.00025,2]
[312990826,1706568643520,-681.03348207,0.00025,2]
[312990827,1706568643529,-7653.30118371,0.00025,2]
[312990828,1706568643538,-4729.99614024,0.00025,2]
[312990829,1706568643547,-1829.09841763,0.00025,2]
[312990830,1706568643556,-5847.93204235,0.00025757,2]
[312990831,1706568643565,-162.085067,0.00027006,2]
[312990832,1706568643574,-151.0,0.00027189,2]
[312990833,1706568643583,-155.0,0.00027397,2]
[312990834,1706568643592,-5414.52,0.00027397,3]
[312990835,1706568643601,-4512.1,0.00027397,3]
[312990836,1706568643611,-164.95618985,0.00027397,10]
[312990837,1706568643620,-1500.0,0.00028,2]
[312990838,1706568643629,-412.2237408,0.00028489,5]
[312990839,1706568643638,-498.54555384,0.00028499,5]
[312990840,1706568643647,-9138.49084877,0.000285,4]
[312990841,1706568643656,-190.2727316,0.00028729,2]
[312990842,1706568643665,-155.0,0.00028767,2]
[312990843,1706568643674,-7486.67928675,0.000288,2]
[312990844,1706568643683,-155.0,0.00029,2]
[312990845,1706568643692,-1934.29515159,0.00029,2]
[312990846,1706568643701,-1500.0,0.00029,2]
[312990847,1706568643709,-196.7000636,0.00029315,2]
[312990848,1706568643718,-162.085067,0.00029354,2]
[312990849,1706568643727,-156.2805954,0.0002939,2]
[312990850,1706568643736,-445.52364689,0.00029748,2]
[312990851,1706568643745,-500.0,0.0002976,10]
[312990852,1706568643753,-500.0,0.0002978,10]
[312990853,1706568643762,-500.0,0.000298,10]
[312990854,1706568643771,-500.0,0.0002982,10]
[312990855,1706568643780,-500.0,0.0002984,10]
[312990856,1706568643789,-500.0,0.0002986,10]
[312990857,1706568643798,-500.0,0.0002988,10]
[312990858,1706568643806,-500.0,0.000299,10]
[312990859,1706568643816,-500.0,0.0002992,10]
[312990860,1706568643824,-500.0,0.0002994,10]
[312990861,1706568643833,-500.0,0.0002996,10]
[312990862,1706568643842,-500.0,0.0002998,10]
[312990863,1706568643851,-155.00930056,0.00029991,2]
[312990864,1706568643860,-6969.00513262,0.00029991,2]
[312990865,1706568643870,-155.06694377,0.00029991,2]
[312990866,1706568643879,-182.91706643,0.00029991,2]
[312990867,1706568643888,-195.76432188,0.00029991,2]
[312990868,1706568643898,-500.0,0.00029991,2]
[312990869,1706568643907,-500.0,0.00029991,2]
[312990870,1706568643917,-500.0,0.00029991,2]
[312990871,1706568644019,-500.0,0.00029991,2]
[312990872,1706568644029,-500.0,0.00029991,2]
[312990873,1706568644038,-500.0,0.00029991,2]
[312990874,1706568644047,-500.0,0.00029991,2]
[312990875,1706568644056,-374.28998743,0.00029991,2]
[312990876,1706568644066,-500.0,0.00029991,2]
[312990877,1706568644076,-191.27669324,0.00029991,2]
[312990878,1706568644085,-500.0,0.00029991,2]
[312990879,1706568644094,-500.0,0.00029991,2]
[312990880,1706568644104,-514.80628194,0.00029991,2]
[312990881,1706568644113,-500.0,0.00029991,2]
[312990882,1706568644123,-500.0,0.00029991,2]
[312990883,1706568644132,-500.0,0.00029991,2]
[312990884,1706568644141,-500.0,0.00029991,2]
[312990885,1706568644150,-500.0,0.00029991,2]
[312990886,1706568644160,-178.51915657,0.00029991,2]
[312990887,1706568644169,-500.0,0.00029991,2]
[312990888,1706568644179,-500.0,0.00029991,2]
[312990889,1706568644188,-500.0,0.00029991,2]
[312990890,1706568644198,-500.0,0.00029991,2]
[312990891,1706568644207,-506.20996001,0.00029991,2]
[312990892,1706568644217,-500.0,0.00029991,2]
[312990893,1706568644226,-500.0,0.00029991,2]
[312990894,1706568644236,-500.0,0.00029991,2]
[312990895,1706568644245,-500.0,0.00029991,2]
[312990896,1706568644255,-500.0,0.00029991,2]
[312990897,1706568644264,-500.0,0.00029991,2]
[312990898,1706568644274,-500.0,0.00029991,2]
[312990899,1706568644284,-500.0,0.00029991,2]
[312990900,1706568644295,-500.0,0.00029991,2]
[312990901,1706568644304,-500.0,0.00029991,2]
[312990902,1706568644313,-500.0,0.00029991,2]
[312990903,1706568644324,-500.0,0.00029991,2]
[312990904,1706568644333,-500.0,0.00029991,2]
[312990905,1706568644342,-500.0,0.00029991,2]
[312990906,1706568644352,-500.0,0.00029991,2]
[312990907,1706568644361,-500.0,0.00029991,2]
[312990908,1706568644371,-303.74433034,0.00029992,2]
[312990909,1706568644380,-151.0,0.00029992,2]
[312990910,1706568644390,-1227.30925024,0.00029993,3]
[312990911,1706568644399,-155.25655737,0.00029993,2]
[312990912,1706568644408,-7966.81883748,0.00029993,2]
[312990913,1706568644417,-366.10179068,0.00029993,2]
[312990914,1706568644431,-2072.82232947,0.00029993,2]
[312990915,1706568644440,-309.80941338,0.00029993,2]
[312990916,1706568644449,-155.06354729,0.00029993,2]
[312990917,1706568644458,-342.49705284,0.00029993,2]
[312990918,1706568644469,-201.08800032,0.00029993,2]
[312990919,1706568644478,-284.3726907,0.00029993,2]
[312990920,1706568644487,-841.24051252,0.00029993,2]
[312990921,1706568644496,-1198.60324803,0.00029993,2]
[312990922,1706568644506,-588.43545532,0.00029993,2]
[312990923,1706568644516,-155.61679895,0.00029993,2]
[312990924,1706568644525,-180.94314367,0.00029993,2]
[312990925,1706568644534,-500.0,0.00029993,2]
[312990926,1706568644544,-19505.04081883,0.00029993,2]
[312990927,1706568644553,-1533.703378,0.00029993,2]
[312990928,1706568644562,-1533.703378,0.00029993,2]
[312990929,1706568644572,-151.0,0.00029993,2]
[312990930,1706568644581,-188.856946,0.00029993,2]
[312990931,1706568644591,-1528.24697,0.00029993,2]
[312990932,1706568644601,-1528.24697,0.00029993,2]
[312990933,1706568644610,-249.0,0.00029993,2]
[312990934,1706568644619,-151.0,0.00029993,2]
[312990935,1706568644629,-155.25446757,0.00029994,2]
[312990936,1706568644639,-292.21634462,0.00029994,2]
[312990937,1706568644648,-3719.14271832,0.00029994,2]
[312990938,1706568644657,-21660.838838,0.00029995,2]
[312990939,1706568644667,-15363.84575211,0.00029995,2]
[312991211,1706568657972,29778.72348992,0.00016,2]
[312991212,1706568657997,40243.07428672,0.00016,2]
[312991227,1706568818702,155.33940957,0.00016,2]
[312991228,1706568821976,195177.39092388,0.00016,2]
[312991229,1706568831630,155.89255893,0.00016,2]
[312991251,1706569483253,200.0,0.00021329,7]
[312991332,1706569832290,-272.91151792,0.00019093,2]
[312991334,1706569832300,-1019.24131985,0.00019093,2]
[312991478,1706569838531,-3064.59038316,0.00019093,2]
[312991480,1706569838542,-406.63150959,0.00019093,2]
[312991482,1706569838554,-311.96431891,0.00019093,2]
[312991484,1706569838563,-5728.58731102,0.00019094,2]
[312991486,1706569838575,-876.87188715,0.00019094,2]
[312991800,1706569841519,-13652.03010775,0.00019094,2]
[312991802,1706569841531,-447.66323578,0.00019094,2]
[312991804,1706569841540,-170.094479,0.0001934,2]
[312991806,1706569841549,-166.535521,0.00019392,2]
[312991808,1706569841558,-245.64947409,0.000199,2]
[312991810,1706569841567,-155.58047114,0.0002,2]
[312991812,1706569841576,-323.48853251,0.00020899,2]
[312991814,1706569841586,-155.75566436,0.000209,2]
[312991816,1706569841595,-62.78469518,0.0002099,3]
[312991818,1706569841608,-5995.49530482,0.0002099,3]
[312991820,1706569841618,-5770.21,0.0002099,3]
[312991822,1706569841627,-233.24853547,0.00021,2]
[312991824,1706569841636,-1827.7377922,0.00021,2]
[312991826,1706569841645,-12152.8068927,0.00021,2]
[312992018,1706569843396,-622.93575481,0.00021,2]
[312992021,1706569843407,-1000.0,0.00021,2]
[312993676,1706571032577,-155.0,0.00018693,3]
[312993678,1706571032587,-19723.27746481,0.00018693,2]
[312993679,1706571032596,-4802.42753151,0.00018694,2]
[312993680,1706571032605,-1199.48200298,0.00018697,2]
[312993681,1706571032614,-3595.82796446,0.00018699,2]
[312993682,1706571032624,-163.32257243,0.000188,2]
[312993683,1706571032633,-150.0,0.000189,2]
[312993684,1706571032643,-166.53552,0.00019689,2]
[312993685,1706571032652,-200.0,0.00020563,2]
[312993686,1706571032661,-297.41076214,0.00020998,2]
[312993687,1706571032671,-224.53556397,0.00020998,2]
[312993688,1706571032681,-155.03973553,0.00020998,2]
[312993689,1706571032691,-272.31122692,0.00020999,2]
[312993690,1706571032700,-17208.74077705,0.00021,2]
[312993691,1706571032709,-4136.75171138,0.00021,2]
[312994440,1706571046629,-2485.6425128,0.00021,2]
[312995612,1706572237796,-154.98450155,0.0001886,2]
[312995614,1706572237805,-154.98450155,0.00018861,2]
[312995616,1706572237815,-4.54169222,0.00018861,2]
[312995930,1706572240875,-634.74677947,0.00018861,2]
[312995932,1706572240885,-4052.95684768,0.000189,2]
[312995934,1706572240894,-1584.29146325,0.00019,2]
[312995936,1706572240903,-167.633153,0.00019178,2]
[312995938,1706572240913,-244.197801,0.00019508,2]
[312995940,1706572240923,-303.86973332,0.00019999,2]
[312995942,1706572240934,-155.02015262,0.0002,2]
[312995944,1706572240944,-1199.58942855,0.0002,2]
[312995946,1706572240954,-158.56416614,0.000209,2]
[312995948,1706572240964,-199.55098898,0.00020999,2]
[312995950,1706572240973,-679.3029243,0.00020999,2]
[312995952,1706572240982,-1243.15127385,0.00020999,2]
[312995954,1706572240992,-22466.91249922,0.00021,2]
[312995956,1706572241001,-9871.3918588,0.00021,2]
[312995958,1706572241011,-194.55808271,0.00021,2]
[312995960,1706572241020,-300.0,0.00021,2]
[312995962,1706572241030,-2087.09739776,0.00021,2]
[312995964,1706572241039,-3196.26606373,0.00021,2]
[312995966,1706572241048,-31224.26744251,0.00021,2]
[312996098,1706572561435,790.76119493,0.00018899,5]
[312996393,1706573431877,-154.98450155,0.00018794,2]
[312996394,1706573431889,-500.0,0.00018795,2]
[312996395,1706573431899,-19723.27746481,0.00018798,2]
[312996396,1706573431909,-20483.25017545,0.00018799,2]
[312996397,1706573431921,-155.75566433,0.000188,2]
[312996398,1706573431930,-602.9736358,0.00018897,2]
[312996399,1706573431939,-1243.37082882,0.00018897,2]
[312996400,1706573431952,-4817.36489966,0.00018897,2]
[312996401,1706573431961,-1610.48559315,0.00018897,2]
[312996402,1706573431972,-527.10191996,0.00018898,2]
[312996403,1706573431982,-17443.1463381,0.00018899,2]
[312996435,1706573438036,-6186.61876364,0.00018899,2]
[312996436,1706573438048,-982.49531451,0.00018899,2]
[312997519,1706574285296,280.0,0.00021504,7]
[312997543,1706574585357,280.0,0.00021504,7]
[312997558,1706574632032,-154.98450155,0.00017747,2]
[312997559,1706574632041,-523.46745706,0.00017747,2]
[312997560,1706574632051,-243.43578923,0.00017748,2]
[312997561,1706574632061,-4802.42753151,0.00017749,2]
[312997562,1706574632070,-8823.98223089,0.00017773,2]
[312997563,1706574632088,-16076.01776911,0.00017773,2]
[312997564,1706574632098,-161.50031296,0.00018508,2]
[312997565,1706574632109,-158.56416615,0.00018608,2]
[312997566,1706574632118,-21703.07731623,0.00018708,2]
[312997567,1706574632127,-18719.11603295,0.00018897,2]
[312997568,1706574632136,-1503.6050481,0.00018897,2]
[312997569,1706574632145,-178.65067805,0.00018898,2]
[312997570,1706574632156,-222.88030321,0.00018898,2]
[312997571,1706574632166,-5050.98297213,0.00018898,2]
[312997572,1706574632177,-6176.18742242,0.000189,2]
[312997573,1706574632188,-1584.29146325,0.00019,2]
[312997574,1706574632197,-168.197658,0.00019178,2]
[312997575,1706574632206,-169.523907,0.00019178,2]
[312997576,1706574632216,-169.097064,0.00019178,2]
[312997577,1706574632226,-166.53552,0.00019178,2]
[312997578,1706574632235,-200.0,0.00019549,2]
[312997579,1706574632245,-309.6854987,0.0002,2]
[312997580,1706574632254,-1199.58942855,0.0002,2]
[312997581,1706574632263,-154.98450155,0.0002,2]
[312997582,1706574632273,-151.53182002,0.0002,2]
[312997583,1706574632282,-303.61892736,0.00020989,2]
[312997584,1706574632291,-151.0,0.00020989,2]
[312997585,1706574632300,-529.10640682,0.00020989,2]
[312997611,1706574638789,-639.28847169,0.00017746,2]
[312997613,1706574638798,-1176.27834718,0.00020989,2]
[312997615,1706574638807,-1705.384754,0.00020989,2]
[312997617,1706574638816,-151.0,0.00020989,2]
[312997619,1706574638824,-151.0,0.00020989,2]
[312997620,1706574638834,-1528.24697,0.00020989,2]
[312997622,1706574638842,-1528.24697,0.00020989,2]
[312997624,1706574638851,-219.73468007,0.00020999,2]
[312997626,1706574638861,-155.0,0.00021335,4]
[312997628,1706574638870,-150.0,0.000215,2]
[312997630,1706574638879,-245.615834,0.000215,2]
[312997632,1706574638888,-3196.26606373,0.00021504,2]
[312997634,1706574638897,-2087.09739776,0.00021504,2]
[312997636,1706574638906,-300.0,0.00021504,2]
[312997638,1706574638915,-7149.93561757,0.00021504,2]
[312997843,1706574641323,-20669.83686405,0.00021504,2]
[312997860,1706574644379,-366.00256985,0.00021503,2]
[312997861,1706574644391,-160.93688957,0.00021503,2]
[312997862,1706574646202,-1198.11015777,0.0002,2]
[312997863,1706574646212,-7313.08,0.00021494,3]
[312997864,1706574646222,-2666.752819,0.00021503,2]
[312997865,1706574646231,-302.69702483,0.00021503,2]
[312997866,1706574646241,-7292.81957767,0.00021504,2]
[312997983,1706575838364,-639.28847169,0.00019403,2]
[312997985,1706575838373,-2143.65152831,0.00019404,2]
[312997987,1706575838385,-432.0,0.00019404,2]
[312998268,1706576424941,1832.1,0.000356,120]
[312998269,1706576424962,1832.1,0.000356,120]
[312998270,1706576424985,1832.1,0.000356,120]
[312998271,1706576425005,1832.1,0.000356,120]
[312998581,1706577041625,-639.28847169,0.00019251,2]
[312998582,1706577041634,-163.32257243,0.00019252,2]
[312998583,1706577041644,-154.98450155,0.00019352,3]
[312998584,1706577041653,-500.2899752,0.0002,2]
[312998585,1706577041662,-166.53552,0.00020227,2]
[312998586,1706577041671,-155.03973553,0.00020999,2]
[312998587,1706577041680,-1857.33815315,0.00021,2]
[312998619,1706577043596,-600.0,0.00021,2]
[312998620,1706577043608,-4128.95910025,0.00021,2]
[312998621,1706577043620,-521.1292128,0.00021,2]
[312998622,1706577043631,-1061.03455816,0.00021,2]
[312998832,1706578092319,10000.0,0.00016,2]
[312998833,1706578102258,10000.0,0.00016,2]
[312998834,1706578121293,10000.0,0.00016,2]
[312998835,1706578129533,10000.0,0.00016,2]
[312998836,1706578149473,10000.0,0.00016,2]
[312998837,1706578159420,10000.0,0.00016,2]
[312998838,1706578171067,10000.0,0.00016,2]
[312998839,1706578179190,10000.0,0.00016,2]
[312998840,1706578200154,5643.0,0.00016,2]
[312998868,1706578233589,-1056.62965606,0.000189,2]
[312999329,1706578242842,-834.24980271,0.000189,2]
[312999330,1706578242854,-1329.99702363,0.000189,2]
[312999344,1706578248594,-232.03128977,0.000189,2]
[312999346,1706578248603,-638.36232204,0.00019342,2]
[312999348,1706578248613,-154.98450155,0.00019343,3]
[312999351,1706578248622,-901.76903062,0.00020999,2]
[312999353,1706578248632,-8114.77155785,0.00021,2]
[312999428,1706578262429,187.55502742,0.000144,2]
[312999429,1706578485629,200.0,0.00021093,7]
[312999514,1706579387327,280.0,0.00021423,7]
[312999562,1706579431883,-155.02790502,0.0001767,2]
[312999564,1706579431893,-155.02790502,0.00017671,2]
[312999566,1706579431902,-266.309853,0.00017674,2]
[312999568,1706579431911,-7970.65505241,0.00017705,2]
[312999570,1706579431920,-24900.0,0.00017706,2]
[312999571,1706579431932,-2077.00381468,0.00018416,2]
[312999572,1706579431942,-165.23204855,0.000188,2]
[312999573,1706579431951,-2306.54584949,0.000189,2]
[312999575,1706579431961,-1584.57551026,0.00019,2]
[312999576,1706579431970,-155.528036,0.00019,2]
[312999578,1706579431980,-153.405623,0.00019,2]
[312999579,1706579431989,-1563.62027,0.00019,2]
[312999581,1706579431999,-1563.62027,0.00019,2]
[312999583,1706579432012,-1563.62027,0.00019,2]
[312999584,1706579432023,-1080.98576577,0.00019,2]
[312999586,1706579432035,-482.63450423,0.00019,2]
[312999587,1706579432044,-575.07274265,0.00019,2]
[312999588,1706579432056,-658.31347731,0.00019,2]
[312999639,1706579438086,-330.23405004,0.00019,2]
[312999641,1706579438096,-1563.62027,0.00019,2]
[312999644,1706579438105,-151.0,0.00019,2]
[312999645,1706579438115,-151.0,0.00019,2]
[312999647,1706579438124,-151.0,0.00019,2]
[312999648,1706579438133,-151.0,0.00019,2]
[312999649,1706579438142,-151.0,0.00019,2]
[312999650,1706579438152,-151.0,0.00019,2]
[312999652,1706579438161,-151.0,0.00019,2]
[312999653,1706579438170,-151.0,0.00019,2]
[312999655,1706579438180,-151.0,0.00019,2]
[312999657,1706579438189,-151.0,0.00019,2]
[312999659,1706579438198,-151.0,0.00019,2]
[312999661,1706579438208,-151.0,0.00019,2]
[312999663,1706579438217,-151.0,0.00019,2]
[312999665,1706579438226,-151.0,0.00019,2]
[312999667,1706579438237,-151.0,0.00019,2]
[312999669,1706579438246,-200.23054,0.00019,2]
[312999671,1706579438255,-1503.833138,0.00019,2]
[312999673,1706579438264,-1503.833138,0.00019,2]
[312999675,1706579438272,-1503.833138,0.00019,2]
[312999677,1706579438281,-1503.833138,0.00019,2]
[312999679,1706579438290,-1503.833138,0.00019,2]
[312999681,1706579438299,-1503.833138,0.00019,2]
[312999683,1706579438308,-1503.833138,0.00019,2]
[312999685,1706579438318,-1503.833138,0.00019,2]
[312999687,1706579438326,-1503.833138,0.00019,2]
[312999689,1706579438335,-1503.833138,0.00019,2]
[312999691,1706579438344,-1503.833138,0.00019,2]
[312999693,1706579438354,-1503.833138,0.00019,2]
[312999695,1706579438363,-1503.833138,0.00019,2]
[312999697,1706579438372,-1503.833138,0.00019,2]
[312999699,1706579438381,-1503.833138,0.00019,2]
[312999701,1706579438390,-1503.833138,0.00019,2]
[312999703,1706579438399,-1503.833138,0.00019,2]
[312999705,1706579438408,-1503.833138,0.00019,2]
[312999707,1706579438417,-1503.833138,0.00019,2]
[312999709,1706579438427,-1503.833135,0.00019,2]
[312999711,1706579438436,-249.961883,0.00019,2]
[312999713,1706579438445,-151.0,0.00019,2]
[312999714,1706579438454,-151.0,0.00019,2]
[312999716,1706579438463,-151.0,0.00019,2]
[312999718,1706579438472,-248.687395,0.00019,2]
[312999721,1706579438484,-170.2725645,0.00019178,2]
[312999722,1706579438495,-168.338537,0.00019178,2]
[312999724,1706579438504,-155.01860223,0.00019343,3]
[312999726,1706579438513,-200.0,0.00019476,2]
[312999728,1706579438522,-155.02480397,0.0002,2]
[312999730,1706579438531,-1199.86892495,0.0002,2]
[312999732,1706579438540,-155.02170304,0.0002,2]
[312999734,1706579438550,-1563.62027,0.0002,2]
[312999735,1706579438560,-1563.62027,0.0002,2]
[312999737,1706579438569,-1563.62027,0.0002,2]
[312999739,1706579438579,-1563.62027,0.0002,2]
[312999741,1706579438588,-1563.62027,0.0002,2]
[312999743,1706579438598,-1563.62027,0.0002,2]
[312999746,1706579438616,-1563.62027,0.00020263,2]
[312999748,1706579438628,-1563.62027,0.00020263,2]
[312999750,1706579438638,-151.688273,0.00020273,2]
[312999752,1706579438650,-151.0,0.00020273,2]
[312999754,1706579438659,-152.421387,0.00020273,2]
[312999756,1706579438669,-1563.62027,0.00020273,2]
[312999758,1706579438679,-1563.62027,0.00020273,2]
[312999760,1706579438688,-1563.62027,0.00020273,2]
[312999762,1706579438699,-1563.62027,0.00020273,2]
[312999765,1706579438709,-1563.62027,0.00020273,2]
[312999767,1706579438718,-1563.620276,0.00020273,2]
[312999769,1706579438728,-304.74465132,0.00020282,2]
[312999771,1706579438740,-152.21925,0.00020283,2]
[312999773,1706579438749,-154.6767696,0.00020548,2]
[312999775,1706579438760,-489.92584283,0.00020993,2]
[312999777,1706579438769,-925.50819484,0.00021,2]
[312999779,1706579438778,-4136.75171138,0.00021,2]
[312999794,1706579438913,-3495.78994315,0.00021062,2]
[312999796,1706579438923,-37871.68847167,0.00021093,2]
[312999911,1706579444145,-416.75595341,0.00021083,3]
[312999914,1706579444166,-497.0012531,0.00021083,3]
[312999922,1706579444242,-343.76509998,0.00021083,3]
[313000028,1706579702060,1570.4938582,0.000222,9]
[313000059,1706580580021,201.48790186,0.000222,7]
[313000064,1706580598933,25456.0,0.00029,30]
[313000104,1706580632082,-155.02015262,0.00018974,2]
[313000106,1706580632092,-155.02015262,0.00018975,2]
[313000108,1706580632101,-163.07931925,0.00018992,2]
[313000312,1706580638169,-335.91651833,0.00018973,2]
[313000314,1706580638179,-290.38517339,0.00018992,2]
[313000316,1706580638188,-2206.27038268,0.00018993,2]
[313000539,1706580643216,-448.01690084,0.00018993,2]
[313000619,1706581838444,-351.74051258,0.000189,2]
[313000804,1706581843357,-2359.92343338,0.000189,2]
[313000805,1706581843367,-155.02325349,0.00018973,3]
[313000806,1706581843376,-1584.57551026,0.00019,2]
[313000807,1706581843385,-168.338537,0.00019559,2]
[313000808,1706581843395,-175.5596519,0.00020084,2]
[313000809,1706581843404,-165.23204854,0.00020983,2]
[313000811,1706581843413,-153.0,0.00021,2]
[313000812,1706581843423,-153.0000001,0.00021,2]
[313000814,1706581843432,-153.0,0.00021,2]
[313000815,1706581843441,-199.5341538,0.00021,2]
[313000816,1706581843450,-153.8078246,0.00021,2]
[313000817,1706581843461,-180.75656107,0.00021081,2]
[313000818,1706581843470,-155.138387,0.00021081,2]
[313000819,1706581843479,-1204.47647971,0.00021081,2]
[313000820,1706581843489,-262.50133681,0.00021081,2]
[313000821,1706581843498,-1830.48831989,0.00021082,2]
[313000954,1706583034183,-155.02790502,0.00018973,3]
[313000956,1706583034194,-1459.81512322,0.00018981,2]
[313001449,1706583039266,-314.8224216,0.00018981,2]
[313001451,1706583039276,-949.00659514,0.00018982,2]
[313001667,1706583043672,-858.76936883,0.00018982,2]
[313001668,1706583043682,-1666.63514851,0.00021081,2]
[313001669,1706583043693,-248.54146457,0.00021082,2]
[313001670,1706583043703,-156.3330644,0.00021082,2]
[313001671,1706583043713,-5771.45,0.00021083,3]
[313001672,1706583043722,-11005.77,0.00021083,3]
[313001673,1706583043732,-2665.49982828,0.00021083,3]
[313002985,1706585438034,-155.0310062,0.00018935,2]
[313002986,1706585438044,-272.96647421,0.00018936,2]